Cogmind - Beta 16.1 @@@ ROGUE MODE // 2026.02.10 @ 07:46:30 Player: Megaknight51 Result: Destroyed by AY-9QM(R) with Subdweller Laser Performance ------------- Evolutions (0) 0 Regions Visited (2) 400 Robots Destroyed (20) 100 Value Destroyed (478) 478 Prototype IDs (3) 60 Alien Tech Used (0) 0 Bonus (0) 0 TOTAL SCORE: 1038 Bonus ------- None Cogmind --------- Core Integrity 0/250 Matter 205/300 Energy 99/100 System Corruption 0% Temperature Cool (6) Movement Core (900) Ox17 Location -10/Subcaves Parts ------- > --- POWER (1) -------- Subdweller Power Source > --- PROPULSION (2) --- (None) > --- UTILITY (2) ------ Light Humpback > --- WEAPON (2) ------- Subdweller Machine Gun Barrage Gun > --- INVENTORY (25) --- Ion Engine Light Ion Engine Light Ion Engine Makeshift Leg Structural Scanner Improved Terrain Scanner Light Armor Plating Light Armor Plating Light Armor Plating Hacking Suite Subdweller Beam Cannon Light Assault Rifle Light Assault Rifle Mining Claw Peak State ------------ > --- POWER ------------ Subdweller Power Source > --- PROPULSION ------- Light Treads > --- UTILITY ---------- Light Humpback > --- WEAPON ----------- Battle Cannon Battle Cannon > --- INVENTORY -------- Ion Engine Light Ion Engine Light Ion Engine Makeshift Leg Structural Scanner Improved Terrain Scanner Light Armor Plating Light Armor Plating Light Armor Plating Hacking Suite Subdweller Beam Cannon Light Assault Rifle Light Assault Rifle Barrage Gun Mining Claw [Rating: 11] Favorites ----------- Power Ion Engine Engine Ion Engine Propulsion Light Treads Treads Light Treads Utility Light Humpback Storage Light Humpback Protection Light Armor Plating Weapon Light Assault Rifle Ballistic Gun Light Assault Rifle Ballistic Cannon Battle Cannon Slashing Weapon Mining Claw Build | -11 -10 -10 ------- Run | Yrd Mat Sub Slots Evolved . | . . . Power . | . . . Propulsion . | . . . Utility . | . . . Weapon . | . . . Parts Attached 20 | 6 7 7 Power 3 | 1 1 1 Engine 3 | 1 1 1 Core . | . . . Reactor . | . . . Propulsion 3 | 2 1 . Treads 3 | 2 1 . Leg . | . . . Wheel . | . . . Hover . | . . . Flight . | . . . Utility 5 | 1 3 1 Device . | . . . Storage 3 | 1 1 1 Processor . | . . . Hackware . | . . . Protection 2 | . 2 . Artifact . | . . . Weapon 9 | 2 2 5 Energy Gun . | . . . Energy Cannon . | . . . Ballistic Gun 6 | 2 2 2 Ballistic Cannon 2 | . . 2 Launcher . | . . . Special Weapon . | . . . Impact Weapon . | . . . Slashing Weapon 1 | . . 1 Piercing Weapon . | . . . Special Melee Weapon . | . . . Unidentified Prototypes . | . . . Parts Lost 7 | . 2 5 Power . | . . . Propulsion 3 | . 1 2 Utility 1 | . . 1 Weapon 3 | . 1 2 Highest Loss Streak 3 | . 1 3 To Critical Strikes . | . . . Average Backups 10 | 1 7 13 Power 2 | . 1 2 Propulsion . | . . . Utility 4 | . 3 5 Weapon 2 | . 2 4 Tool/Special . | . . . Unused Backups 12 | . 2 10 Power 2 | . . 2 Propulsion 2 | . 1 1 Utility 6 | . . 6 Weapon 2 | . 1 1 Tool/Special . | . . . Average Slot Usage (%) 84 | . 93 72 Engine 14 | . 14 14 Treads 21 | . 26 14 Storage 14 | . 14 14 Protection 5 | . 9 1 Ballistic Gun 18 | . 28 6 Ballistic Cannon 8 | . . 18 Slashing Weapon 1 | . . 2 Peak Build Rating 11 | 6 8 11 Average Rating 8 | 5 7 9 On Entrance 4 | . 6 8 Avg Prop Armor Cover (%) . | . . . Naked Turns . | . . . Heaviest Build 51 | 13 20 51 Greatest Support 40 | 40 40 40 Greatest Overweight (x) 15 | 2 . 15 Average Overweight (x) . | . . 1 Largest Inventory Capacity 25 | 8 10 25 Average Capacity 15 | 7 8 23 Most Carried 16 | 3 10 16 Average Carried 10 | 1 7 13 Final Capacity 25 | 8 10 25 Final Carried 14 | 3 9 14 Class Distribution -------------------- 92% | Mutant 7% | Scavenger-Mutant Dominant Class ---------------- Mutant | -10/Materials Mutant | -10/Subcaves Resources | -11 -10 -10 ----------- Run | Yrd Mat Sub Matter Collected 649 | 226 232 191 Remotely . | . . . Salvage Created 529 | 12 399 118 Parts 37 | 3 27 7 Haulers Intercepted 1 | . 1 . Recyclers Shooed 1 | . 1 . Parts Field Recycled . | . . . Retrieved Matter . | . . . Parts Self-Destructed 13 | . . 13 Prevented . | . . . Parts Restored . | . . . Kills | -11 -10 -10 ------- Run | Yrd Mat Sub Combat Hostiles Destroyed 16 | . 12 4 Guns 13 | . 12 1 Cannons 3 | . . 3 Classes Destroyed 7 | 1 5 1 Tunneler 1 | 1 . . Hauler 1 | . 1 . Operator 1 | . 1 . Watcher 1 | . 1 . Swarmer 6 | . 6 . Grunt 6 | . 6 . Subdweller 4 | . . 4 Best Kill Streak 5 | 1 5 1 Combat Bots Only 5 | . 5 1 Max Kills in Single Turn 1 | 1 1 1 Gunslinging . | . . . Exploded . | . . . Melee . | . . . Uniques/NPCs Destroyed . | . . . Combat | -11 -10 -10 -------- Run | Yrd Mat Sub Hostile Shots Fired 141 | . 82 59 Missed 33 | . 18 15 Hits 108 | . 64 44 Projectile 108 | . 64 44 Critical Strikes 3 | . 2 1 Damage Taken 1618 | . 718 900 Core 251 | . 79 172 Absorbed by Shields . | . . . Core Remaining (%) 100 | 100 . . Volleys Fired 108 | 2 68 38 Largest 2 | 2 2 2 Hottest 66 | 40 40 66 Shots Fired 214 | 4 135 75 Gun 181 | 4 135 42 Cannon 33 | . . 33 Launcher . | . . . Special . | . . . Kinetic 214 | 4 135 75 Thermal . | . . . Explosive . | . . . Electromagnetic . | . . . Robot Hit Streak 21 | 2 12 21 Robot Miss Streak 3 | 1 3 3 Penetration Max . | . . . Secondary Targets 3 | . 3 . Max Gunslinging Chain 1 | . 1 . Shots Hit Robots 150 | 2 91 57 Core Hits 39 | 1 29 9 Critical Kills . | . . . Critical Parts Destroyed 2 | . 2 . Critical Strikes 2 | . 2 . Destroy 2 | . 2 . Melee Attacks 16 | . . 16 Impact . | . . . Slashing 16 | . . 16 Piercing . | . . . Sneak Attacks . | . . . Combat Hostiles . | . . . Follow-up Attacks . | . . . Damage Inflicted 1574 | 16 769 789 Guns 1140 | 16 765 359 Cannons 430 | . . 430 Explosions . | . . . Melee . | . . . Ramming 4 | . 4 . Kinetic 1570 | 16 765 789 Thermal . | . . . Explosive . | . . . Electromagnetic . | . . . Impact . | . . . Slashing . | . . . Piercing . | . . . Highest Corruption . | . . . Average Corruption . | . . . Corruption Purged . | . . . Corruption Blocked . | . . . Overload Shots . | . . . Overflow Damage . | . . . Projectiles . | . . . Explosions . | . . . Melee . | . . . Knockbacks 5 | . . 5 Impact . | . . . Kinetic 5 | . . 5 Secondary . | . . . Self-Inflicted Damage . | . . . Shots . | . . . Rammed 3 | . 3 . Targets Rammed 3 | . 3 . Kicked . | . . . Crushed . | . . . Highest Temperature 151 | . 151 . Average Temperature 41 | . 41 . Received Heat Transfer 441 | . 357 84 Siege Activations . | . . . Martial Activations . | . . . Shielding Activations . | . . . Robots Disrupted . | . . . Combat Hostiles . | . . . Robots Corrupted . | . . . Combat Hostiles . | . . . Parts Fried . | . . . Impact Corruptions . | . . . Robots Melted . | . . . Combat Hostiles . | . . . Parts Melted . | . . . Heat Transferred . | . . . Parts Sabotaged . | . . . Parts Stolen . | . . . Parts Stripped . | . . . Power Chain Reactions . | . . . Alert | -11 -10 -10 ------- Run | Yrd Mat Sub Maximum Alert Level . | . . . Low Security (%) 100 | 100 100 . Level 1 . | . . . Level 2 . | . . . Level 3 . | . . . Level 4 . | . . . Level 5 . | . . . High Security . | . . . Max Security . | . . . Peak Influence 136 | 5 136 . Initial 3 | . 3 . Average 46 | . 49 . Influence Increases 362 | 5 357 . Destroy 0b10 Robot/C 240 | . 240 . Destroy 0b10 Robot/NC 20 | 5 15 . Destroy Leader 64 | . 64 . Successful Hack 23 | . 23 . Partial Spotted 15 | . 15 . Influence Decreases 362 | . 362 . Entered New Map 2 | . 2 . Time Decay 340 | . 340 . Lost Part 20 | . 20 . Squads Dispatched 3 | . 3 . Investigation 1 | . 1 . Extermination . | . . . Reinforcement 2 | . 2 . Assault . | . . . Garrison . | . . . Intercept . | . . . Searches Triggered . | . . . Construction Impeded . | . . . Haulers Reinforced . | . . . Active Scanning Responses . | . . . Cargo Convoy Interrupts . | . . . Stealth | -11 -10 -10 --------- Run | Yrd Mat Sub Distress Signals 2 | . 2 . Communications Jammed . | . . . Distress Signals . | . . . Times Spotted 29 | . 23 6 Peak Tracking Total 4 | . 4 2 Tactical Retreats . | . . . Traps | -11 -10 -10 ------- Run | Yrd Mat Sub Traps Triggered 1 | . 1 . Indirectly . | . . . Trap Hack Attempts . | . . . Triggered . | . . . Disarmed . | . . . Reprogrammed . | . . . Reused . | . . . Traps Extracted . | . . . Installed . | . . . Triggered . | . . . Machines | -11 -10 -10 ---------- Run | Yrd Mat Sub Machines Disabled . | . . . Max in Single Turn . | . . . Machines Repaired . | . . . Machines Dismantled . | . . . Machines Sabotaged . | . . . Overloaded Fab Kills . | . . . Hacking | -11 -10 -10 --------- Run | Yrd Mat Sub Machines Accessed 4 | . 3 1 Terminals 3 | . 3 . Fabricators . | . . . Repair Stations . | . . . Recycling Units . | . . . Scanalyzers . | . . . Garrison Access . | . . . Total Hacks 12 | . 9 3 Successful 9 | . 6 3 Failed 3 | . 3 . Catastrophic 2 | . 2 . Database Lockouts . | . . . Manual 7 | . 7 . Terminals 9 | . 9 . Fabricators . | . . . Repair Stations . | . . . Recycling Units . | . . . Scanalyzers . | . . . Garrison Access . | . . . Terminal Hacks 9 | . 6 3 Record 3 | . . 3 Robot Analysis 3 | . 3 . Prototype ID Bank 2 | . 2 . Terminal Index 1 | . 1 . Fabricator Hacks . | . . . Repair Station Hacks . | . . . Recycling Unit Hacks . | . . . Scanalyzer . | . . . Garrison Access Hacks . | . . . Unauthorized Hacks . | . . . Terminals . | . . . Fabricators . | . . . Repair Stations . | . . . Recycling Units . | . . . Scanalyzers . | . . . Garrison Access . | . . . Data Cores Recovered . | . . . Used . | . . . Hacking Detections 2 | . 2 . Full Trace Events . | . . . Feedback Events . | . . . Feedback Blocked . | . . . Robot Schematics Acquired . | . . . Robots Built . | . . . Authchips . | . . . Time . | . . . Total Robot Build Rating . | . . . Part Schematics Acquired . | . . . Parts Built . | . . . Authchips . | . . . Time . | . . . Total Part Build Rating . | . . . Part Studies Acquired . | . . . Parts Repaired . | . . . Time . | . . . Parts Recycled . | . . . Recycled Matter . | . . . Retrieved Matter . | . . . Retrieved Components . | . . . Parts Scanalyzed . | . . . Part Schematics Acquired . | . . . Parts Damaged . | . . . Bothacking | -11 -10 -10 ------------ Run | Yrd Mat Sub Used RIF Installer . | . . . Robots Hacked . | . . . Non-combat . | . . . Combat . | . . . Robot Hacks Applied . | . . . Relay Couplers Released . | . . . Fabnet Peak Effective % . | . . . Robots Rewired . | . . . Allies Hacked . | . . . Hacks Repelled . | . . . Allies | -11 -10 -10 -------- Run | Yrd Mat Sub Total Allies . | . . . Largest Group . | . . . Highest-Rated Group . | . . . Highest-Rated Ally . | . . . Total Orders . | . . . Ally Attacks . | . . . Total Damage . | . . . Kills . | . . . Allies Corrupted . | . . . Allies Melted . | . . . Intel | -11 -10 -10 ------- Run | Yrd Mat Sub Active Infowar (turns) . | . . . Robot Analysis Total 3 | . 3 . Derelict Logs Recovered . | . . . Drone Launches . | . . . Drone Recoveries . | . . . Exploration | -11 -10 -10 ------------- Run | Yrd Mat Sub Turns Passed 2939 | 99 1571 1269 Spaces Moved 1240 | 54 828 358 Core 8 | 7 . 1 Treads 1232 | 47 828 357 Legs . | . . . Wheels . | . . . Hover . | . . . Flight . | . . . Fastest Speed 50 | 50 160 160 Average Speed 200 | 153 160 303 Slowest Speed 800 | 160 160 800 Overloaded Moves . | . . . Propulsion Burnouts . | . . . Robots Hopped . | . . . Potential Cave-ins . | . . . Cave-ins Triggered . | . . . Exploration Rate (%) 42 | 3 92 31 Regions Visited 2 Branch Regions 1 Pre-discovered Areas . | . . . Known Exits Taken . | . . . Unknown Exits Taken 2 | 1 1 . Scrap Searched 4 | . . 4 Spaces Dug . | . . . Terrain Destroyed 1 | . . 1 Melee . | . . . Projectile 1 | . . 1 AOE . | . . . Terrain Rammed . | . . . Walls Destroyed . | . . . Machines Disabled . | . . . Actions | -11 -10 -10 --------- Run | Yrd Mat Sub Total 1470 | 64 965 441 Wait 53 | . 43 10 Move 1238 | 53 827 358 Hop . | . . . Pick Up 23 | 3 10 10 Fast Attach 9 | 6 2 1 Attach 3 | . 1 2 Detach . | . . . Swap 9 | . 4 5 Drop 8 | . 7 1 Fire 108 | 2 68 38 Melee 16 | . . 16 Ram . | . . . Kick . | . . . Crush 3 | . 3 . Escape Stasis . | . . . Rewire . | . . . Trap . | . . . Miscellaneous . | . . . Route ------- -11/Scrapyard -10/Materials (discovered 5 exits: [*Mat x2] / [*Min x2] / *Sub) -10/Subcaves (discovered 1 exit: [*Mat]) History --------- Turn | Location | Event 9 | -11/Scrapyard | Discovered new exit (range 16) 100 | -11/Scrapyard | Entered Materials 310 | -10/Materials | Build established: Mutant 720 | -10/Materials | Discovered new exit (range 16) 982 | -10/Materials | Discovered new exit (range 15) 1236 | -10/Materials | Discovered new exit (range 16) 1461 | -10/Materials | Discovered new exit (range 12) 1658 | -10/Materials | Discovered new exit (range 9) 1671 | -10/Materials | Entered Subcaves 1672 | -10/Subcaves | Approached by a straggling Scientist 1729 | -10/Subcaves | Disturbed a concealed Subdweller 1989 | -10/Subcaves | Core integrity fell below 50% 2090 | -10/Subcaves | Discovered new exit (range 15) 2108 | -10/Subcaves | Shifting Twisted Machinery released Sub. Optics 2110 | -10/Subcaves | Shifting Twisted Machinery released Shrapnel Trap 2180 | -10/Subcaves | Visited Clippyterm 2189 | -10/Subcaves | Learned Factory fabricator intel 2255 | -10/Subcaves | A swath of the cavern ceiling suddenly collapsed 2934 | -10/Subcaves | Core integrity fell below 20% 2940 | -10/Subcaves | Destroyed by AY-9QM(R) with Subdweller Laser Last Messages --------------- 02815_ V2-NPB(R): "ECOKILL!" 02824_ V2-NPB(R) knocked back. 02827_ V2-NPB(R) destroyed. 02830_ Subatomizers dissect the Sub. Power Source. 02837_ Acquired Sub. Machine Gun. 02841_ Acquired 31 matter. RR-35E(c): "I think it's somewhere northwest of here" 02844_ Subatomizers dissect the Sub. Power Source. 02844_ Acquired 4 matter. 02850_ Acquired 3 matter. 02854_ Subatomizers dissect the Sub. Power Source. 02859_ SB-4UG(u) tweaks Twisted Machinery. 02861_ SB-4UG(u) builds Twisted Machinery. 02863_ Acquired 2 matter. 02864_ Subatomizers dissect the Sub. Power Source. RR-35E(c): "We're getting close, I can feel it." 02902_ Subatomizers dissect the Sub. Power Source. 02917_ Battle Cannon destroyed. 02921_ Lgt. Treads destroyed. 02932_ Battle Cannon destroyed. Map ----- +----------------------------------------------------+ | | | | | | | | | | | ?????????????????????????????????????????????????? | | ?????????????????????????????????????????????????? | | ?????????????????????????????????????????????????? | | ?????????????????????????????????????????????????? | | ?????????????????????????????????????????????????? | | ?????????????????????????????????????????????????? | | ?????????????????????????????????????????????????? | | ?????????????????????????????????????????????????? | | ?????????????????????????????????????????????????? | | ?????????????????????????????????????????????????? | | ?????????????????????????????????????????????????? | | ?????????????????????????????????????????????????? | | ?????????????????????????????????????????????????? | | ?????????????????????????????????????????????????? | | ?????????????????????????????????????????????????? | | ?????????????????????????????###?????????????????? | | ?????????????????########?#### ##????????????????? | | ????????????????## "" ### c #????????????????? | | ????????????????# "" R #???????????????? | | ????????????????# " R ##???????????????? | | ????????????" ## #@# ##??????????????? ## | | ????????????"""# ""???##### ##???????????????? | | ??????????????????????????# #????????????????? | | ?????????????????????????## #?????????###?????" | | ?????????????????????????# ##???????##"#####?? | | ?????????????????????????### "#???????#""" #?? | | ???????????????????????????# &"##??????#" ### | | ???????????????????????????# & ! ##???#### | | ???????????????????????????# * ##??# ##" | | ???????????????????????????## ##?# ### | | ????????????????????????????# ### ## | | ????????????????????????????# ## " | | ?????????????????????? % ### ### | | ??????????????????? #####?## ##?# | | ????????????????????# ????????# #??? | | ????????????????????### ?????????# ##??? | | ??????????????????????##????????# #???? | | ????????????????????????????????# #???? | | ????????????????????????????????# ?? | | ????????????????????????????????## #? | | ?????????????????????????????????### ### #? | | ???????????????????????????????????# ##??# #? | | ???????????????????????????????????# ##????# #? | | ???????????????????????????????????## ##??????# " | | ????????????????????????????????????# ##????????## | +----------------------------------------------------+ Best States ------------- Heat Dissipation 25 Energy Generation 15 Energy Capacity 250 Matter Stores 300 Matter Capacity 300 Sight Range 16 Terrain Scan Density 10 Armor Coverage 150 Evasion (%) 40 Recoil Reduction 2 Item Schematics ----------------- None Robot Schematics ------------------ None Fabricated ------------ Nothing Repaired ---------- Nothing Studied --------- None Alien Tech Used ----------------- None Achievements -------------- None Challenges ------------ None Game ------ Seed ConcussiveLightShredder Manual? 0 Play Time 00:15:13 Cumulative 59.4 hours Start 2026.02.10 @ 07:35:21 End 2026.02.10 @ 07:46:30 Sessions 1 Manual Loads 0 Difficulty Rogue Special Mode None Game No. 123 Rogue 123 Adventurer 0 Explorer 0 Win Type - Total 0 Types 0/0/0/0/0/0/0/0/0/0 Lore% 36 Gallery% 31 Achievement% 29 Wizard Run 0 Options --------- Layout 0 ASCII 0 Keyboard 1 Movement Arrows Keybinds 0 Fullscreen 1 Font 18/Smallcaps Map View 38x25 Zoom Use 83% Tactical HUD 1 Map Filters NONE Filters NONE Steam 1 RUN: b33fa4d8-851d-427f-bcaa-19fe777f5c80